fUSD/lending_fUSD_20260628
["ID","MTS","AMOUNT","RATE_DAILY","PERIOD"]
[426593734,1782648546000,-500.0,0.00011132,2]
[426593731,1782648546000,-193.0,0.00011132,2]
[426593730,1782648546000,-307.98,0.00011126,2]
[426593732,1782648546000,-300.0,0.00011132,2]
[426593735,1782648546000,-307.35,0.00011135,2]
[426593733,1782648546000,-250.0,0.00011132,2]
[426593737,1782648546000,-307.98,0.00011185,2]
[426593738,1782648546000,-307.35,0.00011225,2]
[426593739,1782648546000,-306.33,0.00011246,2]
[426593740,1782648546000,-766.64,0.00011249,2]
[426593741,1782648546000,-251.2,0.00011261,2]
[426593742,1782648546000,-166.66,0.00011279,2]
[426593736,1782648546000,-306.33,0.00011172,2]
[426593763,1782648549000,-251.66619613,0.00010626,2]
[426593768,1782648559000,-1908.87510998,0.00011856,2]
[426593767,1782648559000,-2700.28504415,0.00011856,2]
[426593766,1782648559000,-250.0,0.00011688,2]
[426593765,1782648559000,-500.0,0.00011688,2]
[426593764,1782648559000,-49.61380387,0.00010626,2]
[426593770,1782648560000,257.71067576,9.758e-05,2]
[426593769,1782648560000,312.11,9.614e-05,2]
[426593772,1782648560000,312.11,9.903e-05,2]
[426593771,1782648560000,54.39932424,9.758e-05,2]
[426593786,1782648563000,-150.0,0.00012419,2]
[426593773,1782648563000,-312.11,0.00010047,2]
[426593775,1782648563000,-312.11,0.00010337,2]
[426593774,1782648563000,-312.11,0.00010192,2]
[426593777,1782648563000,-7082.93489002,0.00011856,2]
[426593776,1782648563000,-312.11,0.00010481,2]
[426593778,1782648563000,-299.99,0.00011856,2]
[426593780,1782648563000,-152.0,0.00011856,2]
[426593781,1782648563000,-152.0,0.00011856,2]
[426593779,1782648563000,-152.0,0.00011856,2]
[426593782,1782648563000,-152.0,0.00011856,2]
[426593783,1782648563000,-292.0,0.00011856,2]
[426593784,1782648563000,-166.66,0.00011977,2]
[426593787,1782648563000,-1852.42,0.00012611,2]
[426593785,1782648563000,-166.66,0.00012209,2]
[426593790,1782648563000,-500.0,0.00012691,2]
[426593788,1782648563000,-250.0,0.0001262,2]
[426593801,1782648563000,-500.0,0.00012691,2]
[426593800,1782648563000,-500.0,0.00012691,2]
[426593798,1782648563000,-500.0,0.00012691,2]
[426593797,1782648563000,-500.0,0.00012691,2]
[426593796,1782648563000,-500.0,0.00012691,2]
[426593799,1782648563000,-500.0,0.00012691,2]
[426593794,1782648563000,-500.0,0.00012691,2]
[426593793,1782648563000,-500.0,0.00012691,2]
[426593792,1782648563000,-500.0,0.00012691,2]
[426593791,1782648563000,-500.0,0.00012691,2]
[426593789,1782648563000,-766.64,0.00012655,2]
[426593802,1782648563000,-214.44058416,0.00012691,2]
[426593795,1782648563000,-500.0,0.00012691,2]
[426593808,1782648564000,-1349.40293454,0.00012692,2]
[426593807,1782648564000,-1259.4244914,0.00012692,2]
[426593805,1782648564000,-499.99999999,0.00012691,2]
[426593806,1782648564000,-477.23264147,0.00012692,2]
[426593804,1782648564000,-250.31075232,0.00012691,2]
[426593803,1782648564000,-500.0,0.00012691,2]
[426593811,1782648572000,-3323.64115884,0.00012692,2]
[426593809,1782648572000,-312.11,0.00010626,2]
[426593813,1782648572000,-1935.48,0.00012915,2]
[426593810,1782648572000,-872.37115264,0.00012692,2]
[426593812,1782648572000,-4496.9958,0.00012692,2]
[426593814,1782648572000,-150.99,0.00012915,2]
[426593816,1782648572000,-4999.99,0.00012915,2]
[426593815,1782648572000,-799.36,0.00012915,2]
[426593817,1782648572000,-5407.31665765,0.00012915,2]
[426593819,1782648614000,500.0,0.00037348,120]
[426593818,1782648614000,500.0,0.00037348,120]
[426593823,1782648615000,500.0,0.00037348,120]
[426593822,1782648615000,500.0,0.00037348,120]
[426593821,1782648615000,500.0,0.00037348,120]
[426593820,1782648615000,500.0,0.00037348,120]
[426593824,1782648616000,500.0,0.00037348,120]
[426593826,1782648616000,622.19807098,0.00037348,120]
[426593825,1782648616000,500.0,0.00037348,120]
[426593853,1782648632000,-4592.67,0.00013379,2]
[426593855,1782648632000,-1281.74,0.00013535,2]
[426593856,1782648632000,-152.0,0.00013671,2]
[426593850,1782648632000,-4999.99,0.00013379,2]
[426593849,1782648632000,-150.0,0.00013379,2]
[426593854,1782648632000,-12046.3,0.00013535,2]
[426593857,1782648632000,-152.0,0.00013671,2]
[426593869,1782648632000,-890.0,0.00014021,2]
[426593863,1782648632000,-150.0,0.00013824,2]
[426593860,1782648632000,-151.0,0.00013679,2]
[426593867,1782648632000,-250.0,0.00014,2]
[426593859,1782648632000,-151.0,0.00013673,2]
[426593865,1782648632000,-450.59392612,0.00013873,2]
[426593861,1782648632000,-151.0,0.00013735,2]
[426593871,1782648632000,-917.0,0.00014021,2]
[426593862,1782648632000,-229.844395,0.0001378,2]
[426593852,1782648632000,-9557.78,0.00013379,2]
[426593872,1782648632000,-766.64,0.00014061,2]
[426593851,1782648632000,-11530.02,0.00013379,2]
[426593831,1782648632000,-433.0,0.00012972,2]
[426593848,1782648632000,-782.33,0.00013204,2]
[426593828,1782648632000,-274.16,0.00012641,2]
[426593829,1782648632000,-380.84,0.0001292,2]
[426593874,1782648632000,-150.0,0.00014119,2]
[426593832,1782648632000,-151.0,0.00012987,2]
[426593830,1782648632000,-13007.24,0.0001292,2]
[426593834,1782648632000,-151.0,0.00012987,2]
[426593833,1782648632000,-152.0,0.00012987,2]
[426593836,1782648632000,-151.0,0.00012987,2]
[426593835,1782648632000,-152.0,0.00012987,2]
[426593838,1782648632000,-151.0,0.00012987,2]
[426593837,1782648632000,-150.0,0.00012987,2]
[426593841,1782648632000,-913.0,0.00012987,2]
[426593839,1782648632000,-905.0,0.00012987,2]
[426593840,1782648632000,-152.0,0.00012987,2]
[426593845,1782648632000,-163.85,0.00012994,2]
[426593843,1782648632000,-151.0,0.00012987,2]
[426593842,1782648632000,-886.0,0.00012987,2]
[426593844,1782648632000,-899.0,0.00012987,2]
[426593846,1782648632000,-533.64,0.00013041,2]
[426593847,1782648632000,-216.54711319,0.00013089,2]
[426593873,1782648632000,-250.0,0.00014089,2]
[426593858,1782648632000,-152.0,0.00013671,2]
[426593876,1782648632000,-302.46,0.00014119,2]
[426593900,1782648632000,-3328.86183685,0.00014899,2]
[426593901,1782648632000,-1358.99310008,0.000149,2]
[426593904,1782648632000,-2639.98456004,0.000149,2]
[426593907,1782648632000,-529.96814599,0.000149,2]
[426593908,1782648632000,-431.15156273,0.000149,2]
[426593905,1782648632000,-688.87727681,0.000149,2]
[426593911,1782648632000,-2500.0,0.000149,2]
[426593902,1782648632000,-1969.86873677,0.000149,2]
[426593906,1782648632000,-3328.86183685,0.000149,2]
[426593910,1782648632000,-1476.86496244,0.000149,2]
[426593909,1782648632000,-3328.86183685,0.000149,2]
[426593912,1782648632000,-156.02381534,0.000149,2]
[426593913,1782648632000,-895.0,0.00014999,2]
[426593914,1782648632000,-919.89372722,0.00014999,2]
[426593917,1782648632000,-633.3,0.00014999,2]
[426593916,1782648632000,-500.0,0.00014999,2]
[426593915,1782648632000,-7141.94028951,0.00014999,2]
[426593918,1782648632000,-500.0,0.00014999,2]
[426593875,1782648632000,-213.0,0.00014119,2]
[426593899,1782648632000,-3328.86183685,0.00014899,2]
[426593896,1782648632000,-3328.86183687,0.00014899,2]
[426593903,1782648632000,-3328.86183685,0.000149,2]
[426593895,1782648632000,-16231.1091,0.00014894,2]
[426593878,1782648632000,-151.0,0.0001418,2]
[426593879,1782648632000,-500.0,0.00014181,2]
[426593880,1782648632000,-898.0,0.00014195,2]
[426593898,1782648632000,-3328.86183685,0.00014899,2]
[426593881,1782648632000,-896.0,0.00014195,2]
[426593883,1782648632000,-736.0,0.00014225,2]
[426593882,1782648632000,-300.0,0.00014206,2]
[426593884,1782648632000,-500.0,0.00014274,2]
[426593885,1782648632000,-904.0,0.00014341,2]
[426593887,1782648632000,-500.0,0.00014455,2]
[426593877,1782648632000,-156.09199307,0.00014119,2]
[426593889,1782648632000,-906.0,0.00014475,2]
[426593888,1782648632000,-894.0,0.00014475,2]
[426593890,1782648632000,-603.74,0.00014497,2]
[426593891,1782648632000,-1004.28,0.00014497,2]
[426593892,1782648632000,-891.0,0.00014655,2]
[426593893,1782648632000,-500.0,0.00014728,2]
[426593894,1782648632000,-886.0,0.00014817,2]
[426593897,1782648632000,-3328.86183685,0.00014899,2]
[426593886,1782648632000,-261.95554425,0.00014354,7]
[426593925,1782648633000,-500.0,0.00014999,2]
[426593933,1782648633000,-508.57397179,0.00014999,2]
[426593928,1782648633000,-500.0,0.00014999,2]
[426593930,1782648633000,-500.0,0.00014999,2]
[426593922,1782648633000,-500.0,0.00014999,2]
[426593924,1782648633000,-500.0,0.00014999,2]
[426593923,1782648633000,-500.0,0.00014999,2]
[426593931,1782648633000,-500.0,0.00014999,2]
[426593926,1782648633000,-500.0,0.00014999,2]
[426593921,1782648633000,-500.0,0.00014999,2]
[426593920,1782648633000,-623.10999442,0.00014999,2]
[426593919,1782648633000,-500.0,0.00014999,2]
[426593929,1782648633000,-500.0,0.00014999,2]
[426593927,1782648633000,-500.0,0.00014999,2]
[426593932,1782648633000,-500.0,0.00014999,2]
[426593942,1782648633000,-500.0,0.00014999,2]
[426593934,1782648633000,-500.0,0.00014999,2]
[426593935,1782648633000,-500.0,0.00014999,2]
[426593949,1782648633000,-34.86819319,0.00015,2]
[426593939,1782648633000,-500.0,0.00014999,2]
[426593937,1782648633000,-384.96058551,0.00014999,2]
[426593943,1782648633000,-666.0,0.00014999,2]
[426593941,1782648633000,-500.0,0.00014999,2]
[426593948,1782648633000,-1750.00754427,0.00015,2]
[426593944,1782648633000,-300.0,0.00014999,2]
[426593947,1782648633000,-905.0,0.00015,2]
[426593945,1782648633000,-300.0,0.00014999,2]
[426593938,1782648633000,-500.0,0.00014999,2]
[426593936,1782648633000,-500.0,0.00014999,2]
[426593940,1782648633000,-500.0,0.00014999,2]
[426593946,1782648633000,-150.0,0.00014999,2]
[426593969,1782648638000,-10000.0,0.00012591,2]
[426593971,1782648638000,-2466.6765876,0.00015,2]
[426593970,1782648638000,-2737.79598855,0.00015,2]
[426594134,1782648640000,-488.32685115,0.00015,2]
[426594135,1782648640000,-300.0,0.00015,2]
[426594148,1782648644000,-1452.43612746,0.00015,2]
[426594147,1782648644000,-1546.09831265,0.000149,2]
[426594150,1782648646000,-151.0,0.00014205,2]
[426594151,1782648646000,-71485.46433775,0.00015,2]
[426594152,1782648647000,-248806.16547295,0.00015,2]
[426594153,1782648647000,-2747.88802329,0.00015,2]
[426594155,1782648647000,-1473.33721193,0.00015,2]
[426594154,1782648647000,-923.25468907,0.00015,2]
[426594156,1782648647000,-1219.19352263,0.00015,2]
[426594158,1782648652000,223.34786732,0.00037348,120]
[426594159,1782649226000,-448.14,0.00011255,2]
[426594161,1782649226000,-448.14,0.00011453,2]
[426594160,1782649226000,-448.14,0.00011354,2]
[426594162,1782649226000,-448.14,0.00011551,2]
[426594165,1782649226000,-855.44,0.00011848,2]
[426594163,1782649226000,-448.14,0.0001165,2]
[426594166,1782649226000,-448.14,0.00011848,2]
[426594167,1782649226000,-250.0,0.00011907,2]
[426594168,1782649226000,-448.14,0.00011946,2]
[426594170,1782649226000,-855.44,0.00012004,2]
[426594169,1782649226000,-192.0,0.00011967,2]
[426594171,1782649226000,-67.44,0.00012045,2]
[426594164,1782649226000,-448.14,0.00011749,2]
[426594176,1782649277000,-188.0,0.00010806,2]
[426594172,1782649277000,-659.08,0.00010692,2]
[426594174,1782649277000,-659.08,0.00010739,2]
[426594173,1782649277000,-183.34202906,0.00010733,2]
[426594178,1782649277000,-659.08,0.0001088,2]
[426594175,1782649277000,-659.08,0.00010786,2]
[426594179,1782649277000,-188.0,0.00010913,2]
[426594182,1782649277000,-188.0,0.0001102,2]
[426594181,1782649277000,-659.08,0.00010974,2]
[426594180,1782649277000,-659.08,0.00010927,2]
[426594177,1782649277000,-659.08,0.00010833,2]
[426594183,1782649277000,-659.08,0.00011021,2]
[426594184,1782649277000,-439.09797094,0.00011068,2]
[426594185,1782649409000,176.90989556,9.982e-05,2]
[426594186,1782649443000,505.55,9.65e-05,2]
[426594187,1782649444000,505.55,9.763e-05,2]
[426594189,1782649444000,463.28817733,9.989e-05,2]
[426594190,1782649444000,42.26182267,9.989e-05,2]
[426594188,1782649444000,505.55,9.876e-05,2]
[426594192,1782649554000,-177.14642059,0.00010101,2]
[426594195,1782649605000,329.56,9.933e-05,2]
[426594194,1782649605000,199.84817569,9.596e-05,2]
[426594193,1782649605000,129.71182431,9.596e-05,2]
[426594197,1782649648000,-263.61905329,0.00010101,2]
[426594198,1782649716000,-64.78452612,0.00010101,2]
[426594199,1782649716000,-150.0,0.00010106,2]
[426594200,1782649716000,-183.34202905,0.0001011,2]
[426594201,1782649716000,-250.0,0.0001013,2]
[426594202,1782649716000,-666.9,0.00010158,2]
[426594203,1782649716000,-216.54711319,0.00010158,2]
[426594205,1782649716000,-150.0,0.0001021,2]
[426594206,1782649716000,-505.55,0.00010214,2]
[426594204,1782649716000,-666.9,0.00010202,2]
[426594208,1782649716000,-141.60041203,0.0001027,2]
[426594209,1782649716000,-187.95958797,0.0001027,2]
[426594210,1782649716000,-666.9,0.00010292,2]
[426594214,1782649716000,-666.9,0.00010381,2]
[426594211,1782649716000,-150.0,0.00010311,2]
[426594212,1782649716000,-505.55,0.00010327,2]
[426594213,1782649716000,-666.9,0.00010336,2]
[426594215,1782649716000,-150.0,0.00010412,2]
[426594216,1782649716000,-666.9,0.00010425,2]
[426594207,1782649716000,-666.9,0.00010247,2]
[426594217,1782649717000,-1.41449242,0.0001044,2]
[426594218,1782649717000,-504.13550758,0.0001044,2]
[426594220,1782649717000,-97.66610314,0.00010496,2]
[426594219,1782649717000,-666.9,0.0001047,2]
[426594229,1782649741000,-329.56,0.00010606,2]
[426594221,1782649741000,-72.79389686,0.00010496,2]
[426594223,1782649741000,-666.9,0.00010514,2]
[426594222,1782649741000,-150.0,0.00010513,2]
[426594224,1782649741000,-505.55,0.00010553,2]
[426594225,1782649741000,-300.0,0.00010558,2]
[426594226,1782649741000,-666.9,0.00010559,2]
[426594227,1782649741000,-666.9,0.00010603,2]
[426594228,1782649741000,-150.0,0.00010606,2]
[426594230,1782649741000,-150.0,0.00010614,2]
[426594235,1782649741000,-150.0,0.00010716,2]
[426594232,1782649741000,-491.10482104,0.00010648,2]
[426594231,1782649741000,-175.79517896,0.00010648,2]
[426594241,1782649741000,-518.84066529,0.00010826,2]
[426594239,1782649741000,-284.58574522,0.00010806,2]
[426594238,1782649741000,-687.04425478,0.00010806,2]
[426594240,1782649741000,-150.0,0.00010817,2]
[426594236,1782649741000,-666.9,0.00010737,2]
[426594234,1782649741000,-666.9,0.00010692,2]
[426594233,1782649741000,-505.55,0.00010666,2]
[426594237,1782649741000,-666.9,0.00010782,2]
[426594256,1782649750000,-250.0,0.00011112,2]
[426594252,1782649750000,-971.63,0.00011076,2]
[426594258,1782649750000,-666.9,0.00011138,2]
[426594255,1782649750000,-500.0,0.00011112,2]
[426594257,1782649750000,-659.08,0.00011115,2]
[426594254,1782649750000,-250.0,0.00011112,2]
[426594250,1782649750000,-666.9,0.00011049,2]
[426594251,1782649750000,-219.98202906,0.00011068,2]
[426594246,1782649750000,-666.9,0.0001096,2]
[426594249,1782649750000,-268.0,0.00011019,2]
[426594247,1782649750000,-166.66,0.00011004,2]
[426594248,1782649750000,-666.9,0.00011004,2]
[426594245,1782649750000,-150.0,0.00010918,2]
[426594244,1782649750000,-666.9,0.00010915,2]
[426594242,1782649750000,-148.05933471,0.00010826,2]
[426594259,1782649750000,-659.08,0.00011161,2]
[426594253,1782649750000,-666.9,0.00011093,2]
[426594261,1782649750000,-666.9,0.00011183,2]
[426594243,1782649750000,-666.9,0.00010871,2]
[426594262,1782649750000,-659.08,0.00011208,2]
[426594260,1782649750000,-166.92,0.00011166,2]
[426594279,1782649750000,-166.66,0.00011699,2]
[426594278,1782649750000,-255.0,0.00011635,2]
[426594277,1782649750000,-659.08,0.0001163,2]
[426594273,1782649750000,-659.08,0.0001149,2]
[426594275,1782649750000,-659.08,0.00011584,2]
[426594276,1782649750000,-971.63,0.00011616,2]
[426594274,1782649750000,-659.08,0.00011537,2]
[426594272,1782649750000,-500.0,0.00011468,2]
[426594280,1782649750000,-200.87711196,0.00011742,2]
[426594270,1782649750000,-659.08,0.00011443,2]
[426594268,1782649750000,-659.08,0.00011349,2]
[426594269,1782649750000,-659.08,0.00011396,2]
[426594267,1782649750000,-971.63,0.00011346,2]
[426594264,1782649750000,-166.66,0.00011236,2]
[426594266,1782649750000,-659.08,0.00011302,2]
[426594265,1782649750000,-659.08,0.00011255,2]
[426594263,1782649750000,-666.9,0.00011227,2]
[426594271,1782649750000,-166.66,0.00011468,2]
[426594295,1782649751000,-551.71639767,0.00012894,2]
[426594293,1782649751000,-542.58310132,0.00012834,2]
[426594292,1782649751000,-433.0,0.0001276,2]
[426594294,1782649751000,-1200.58,0.00012893,2]
[426594291,1782649751000,-1384.7417149,0.00012754,2]
[426594288,1782649751000,-3487.04634222,0.000122,2]
[426594290,1782649751000,-2063.66279704,0.00012628,2]
[426594284,1782649751000,-250.0,0.00011909,2]
[426594287,1782649751000,-166.66,0.00012163,2]
[426594286,1782649751000,-2359.59,0.00012125,2]
[426594285,1782649751000,-166.66,0.00011931,2]
[426594283,1782649751000,-971.63,0.00011886,2]
[426594282,1782649751000,-306.65,0.0001182,2]
[426594296,1782649751000,-166.92,0.00013009,2]
[426594289,1782649751000,-1637.14,0.0001244,2]
[426594297,1782649751000,-152.0,0.00013128,2]
[426594281,1782649751000,-152.0,0.00011818,2]
[426594298,1782649751000,-150.0,0.00013128,2]
[426594315,1782649751000,-151.0,0.00013495,2]
[426594313,1782649751000,-152.0,0.00013495,2]
[426594314,1782649751000,-151.0,0.00013495,2]
[426594312,1782649751000,-151.0,0.00013495,2]
[426594311,1782649751000,-201.70776136,0.00013495,2]
[426594310,1782649751000,-151.0,0.00013495,2]
[426594308,1782649751000,-175.27256989,0.00013488,2]
[426594309,1782649751000,-150.0,0.00013495,2]
[426594303,1782649751000,-151.0,0.00013241,2]
[426594305,1782649751000,-266.82,0.00013398,2]
[426594306,1782649751000,-175.51,0.00013406,2]
[426594304,1782649751000,-306.65,0.00013297,2]
[426594302,1782649751000,-297.0,0.00013153,2]
[426594301,1782649751000,-151.0,0.00013135,2]
[426594300,1782649751000,-151.0,0.00013129,2]
[426594307,1782649751000,-155.2469887,0.00013488,2]
[426594299,1782649751000,-151.0,0.00013128,2]
[426594316,1782649759000,151.0,0.00012749,2]
[426594317,1782649762000,151.0,0.00012749,2]
[426594319,1782649763000,-279.30832635,0.00013509,2]
[426594333,1782649763000,-500.0,0.00013509,2]
[426594332,1782649763000,-500.0,0.00013509,2]
[426594331,1782649763000,-500.0,0.00013509,2]
[426594330,1782649763000,-500.0,0.00013509,2]
[426594328,1782649763000,-500.0,0.00013509,2]
[426594329,1782649763000,-500.0,0.00013509,2]
[426594318,1782649763000,-500.0,0.00013509,2]
[426594327,1782649763000,-500.0,0.00013509,2]
[426594326,1782649763000,-500.0,0.00013509,2]
[426594325,1782649763000,-500.0,0.00013509,2]
[426594323,1782649763000,-500.0,0.00013509,2]
[426594320,1782649763000,-427.83877272,0.00013509,2]
[426594321,1782649763000,-500.0,0.00013509,2]
[426594322,1782649763000,-500.0,0.00013509,2]
[426594324,1782649763000,-500.0,0.00013509,2]
[426594337,1782649763000,-500.0,0.00013509,2]
[426594334,1782649763000,-500.0,0.00013509,2]
[426594336,1782649763000,-500.0,0.00013509,2]
[426594335,1782649763000,-500.0,0.00013509,2]
[426594350,1782649763000,-500.0,0.00013509,2]
[426594352,1782649763000,-265.68443261,0.00013509,2]
[426594351,1782649763000,-500.0,0.00013509,2]
[426594349,1782649763000,-500.0,0.00013509,2]
[426594348,1782649763000,-605.00420832,0.00013509,2]
[426594347,1782649763000,-500.0,0.00013509,2]
[426594346,1782649763000,-500.0,0.00013509,2]
[426594344,1782649763000,-500.0,0.00013509,2]
[426594342,1782649763000,-500.0,0.00013509,2]
[426594343,1782649763000,-500.0,0.00013509,2]
[426594341,1782649763000,-500.0,0.00013509,2]
[426594340,1782649763000,-500.0,0.00013509,2]
[426594338,1782649763000,-500.0,0.00013509,2]
[426594339,1782649763000,-500.0,0.00013509,2]
[426594345,1782649763000,-500.0,0.00013509,2]
[426594361,1782649774000,-500.0,0.00013509,2]
[426594370,1782649774000,-500.0,0.00013509,2]
[426594367,1782649774000,-500.0,0.00013509,2]
[426594365,1782649774000,-500.0,0.00013509,2]
[426594366,1782649774000,-500.0,0.00013509,2]
[426594364,1782649774000,-500.0,0.00013509,2]
[426594362,1782649774000,-500.0,0.00013509,2]
[426594353,1782649774000,-234.31556739,0.00013509,2]
[426594360,1782649774000,-500.0,0.00013509,2]
[426594356,1782649774000,-500.0,0.00013509,2]
[426594368,1782649774000,-500.0,0.00013509,2]
[426594357,1782649774000,-500.0,0.00013509,2]
[426594355,1782649774000,-500.0,0.00013509,2]
[426594354,1782649774000,-500.0,0.00013509,2]
[426594359,1782649774000,-500.0,0.00013509,2]
[426594369,1782649774000,-500.0,0.00013509,2]
[426594358,1782649774000,-500.0,0.00013509,2]
[426594373,1782649774000,-500.0,0.00013509,2]
[426594371,1782649774000,-500.0,0.00013509,2]
[426594387,1782649774000,-500.0,0.00013509,2]
[426594388,1782649774000,-500.0,0.00013509,2]
[426594386,1782649774000,-500.0,0.00013509,2]
[426594384,1782649774000,-500.0,0.00013509,2]
[426594385,1782649774000,-500.0,0.00013509,2]
[426594383,1782649774000,-500.0,0.00013509,2]
[426594380,1782649774000,-500.0,0.00013509,2]
[426594382,1782649774000,-500.0,0.00013509,2]
[426594363,1782649774000,-500.0,0.00013509,2]
[426594379,1782649774000,-250.55602315,0.00013509,2]
[426594372,1782649774000,-500.0,0.00013509,2]
[426594376,1782649774000,-500.0,0.00013509,2]
[426594375,1782649774000,-500.0,0.00013509,2]
[426594374,1782649774000,-500.0,0.00013509,2]
[426594378,1782649774000,-500.0,0.00013509,2]
[426594381,1782649774000,-500.0,0.00013509,2]
[426594377,1782649774000,-500.0,0.00013509,2]
[426594389,1782649775000,-200.0,0.00013509,2]
[426594390,1782649775000,-500.0,0.00013509,2]
[426594393,1782649775000,-500.0,0.00013509,2]
[426594391,1782649775000,-500.0,0.00013509,2]
[426594392,1782649775000,-500.0,0.00013509,2]
[426594394,1782649775000,-500.0,0.00013509,2]
[426594396,1782649775000,-447.72706153,0.00013509,2]
[426594395,1782649775000,-500.0,0.00013509,2]
[426594398,1782649775000,-500.0,0.00013509,2]
[426594399,1782649775000,-245.53896869,0.00013509,2]
[426594397,1782649775000,-500.0,0.00013509,2]
[426594417,1782649831000,-998.3061,0.00014481,2]
[426594424,1782649831000,-306.65,0.00014775,2]
[426594419,1782649831000,-152.0,0.00014603,2]
[426594416,1782649831000,-737.83189038,0.00014481,2]
[426594413,1782649831000,-152.0,0.00014305,2]
[426594411,1782649831000,-151.0,0.0001423,2]
[426594407,1782649831000,-150.0,0.00014083,2]
[426594405,1782649831000,-2247.493,0.00013832,2]
[426594402,1782649831000,-152.0,0.00013509,2]
[426594404,1782649831000,-200.0,0.00013699,2]
[426594408,1782649831000,-150.0,0.00014083,2]
[426594410,1782649831000,-151.0,0.0001423,2]
[426594406,1782649831000,-194.833,0.00013832,2]
[426594420,1782649831000,-1500.0,0.00014647,2]
[426594403,1782649831000,-24736.0,0.00013568,2]
[426594401,1782649831000,-152.0,0.00013509,2]
[426594400,1782649831000,-216.54711319,0.00013509,2]
[426594412,1782649831000,-363.80960081,0.00014305,2]
[426594421,1782649831000,-2500.0,0.00014756,2]
[426594409,1782649831000,-151.0,0.00014212,2]
[426594415,1782649831000,-493.22285301,0.00014481,2]
[426594418,1782649831000,-174.990067,0.00014559,2]
[426594442,1782649831000,-1031.93125297,0.00015,2]
[426594441,1782649831000,-80672.32542726,0.00015,2]
[426594440,1782649831000,-109367.54785904,0.00015,2]
[426594439,1782649831000,-1965.0,0.00015,5]
[426594438,1782649831000,-500.0,0.00014999,2]
[426594433,1782649831000,-1301.12264038,0.00014899,2]
[426594430,1782649831000,-204837.1294864,0.00014856,2]
[426594435,1782649831000,-2164.0,0.000149,5]
[426594428,1782649831000,-264.260098,0.00014856,2]
[426594414,1782649831000,-279.58600489,0.00014481,2]
[426594434,1782649831000,-353.31209732,0.000149,2]
[426594437,1782649831000,-500.85147294,0.00014999,2]
[426594432,1782649831000,-10894.4061188,0.00014881,2]
[426594431,1782649831000,-200.0,0.0001488,2]
[426594436,1782649831000,-500.0,0.00014999,2]
[426594426,1782649831000,-14572.5973112,0.00014856,2]
[426594425,1782649831000,-150.0,0.00014855,2]
[426594423,1782649831000,-1292.25684217,0.00014759,2]
[426594422,1782649831000,-383.70557099,0.00014758,2]
[426594465,1782649837000,-11207.62453301,0.00014824,2]
[426594460,1782649837000,-757.39,0.00014824,2]
[426594455,1782649837000,-18549.71018159,0.00014824,2]
[426594454,1782649837000,-12736.53818899,0.00014824,2]
[426594466,1782649838000,-448.30419999,0.00014824,2]
[426594467,1782649838000,-3341.69911572,0.00014824,2]
[426594482,1782649839000,-96971.2,0.00014824,2]
[426594484,1782649839000,-1322.91230409,0.00014824,2]
[426594483,1782649839000,-705.42837651,0.00014824,2]
[426594487,1782649840000,-2791.12071158,0.00014824,2]